bitfinex-derivatives/quotes_BTCF0:USTF0_20250308
["timestamp","ask_amount","ask_price","bid_price","bid_amount"]
[1741440149286,0.0627,86227.0,86226.0,0.65863425]
[1741440149883,0.0627,86227.0,86226.0,0.67026502]
[1741440150280,0.0627,86227.0,86226.0,0.67194498]
[1741440150482,0.0314,86227.0,86226.0,0.67194498]
[1741440151083,8e-05,86228.0,86227.0,0.1159938]
[1741440151390,0.0637,86233.0,86232.0,0.1159871]
[1741440151688,0.06378,86233.0,86232.0,0.19608625]
[1741440151885,0.06378,86233.0,86232.0,0.23530621]
[1741440152293,0.06378,86233.0,86232.0,0.29930941]
[1741440153083,0.06878,86233.0,86232.0,0.29930941]
[1741440153284,0.06878,86233.0,86232.0,0.31328047]
[1741440153593,0.06878,86233.0,86232.0,0.29930941]
[1741440154787,0.06878,86233.0,86232.0,0.59610941]
[1741440154991,0.06878,86233.0,86232.0,0.23530941]
[1741440155194,0.06878,86233.0,86232.0,0.24928268]
[1741440155486,0.06878,86233.0,86232.0,0.23530941]
[1741440156091,0.08618001,86233.0,86232.0,0.26770941]
[1741440156292,0.08618001,86233.0,86232.0,0.62987054]
[1741440156688,0.08618001,86233.0,86232.0,0.68003611]
[1741440157492,0.08618001,86233.0,86232.0,0.66205701]
[1741440157993,0.03818,86233.0,86232.0,0.66205701]
[1741440158293,0.00508,86233.0,86232.0,0.66205701]
[1741440158501,0.005,86233.0,86232.0,0.68379524]
[1741440158894,0.0361,86233.0,86232.0,0.68379524]
[1741440159789,0.0361,86233.0,86232.0,0.65139524]
[1741440160103,0.1959765,86240.0,86238.0,0.115979]
[1741440160298,0.08,86240.0,86238.0,0.26735552]
[1741440160594,0.08,86240.0,86238.0,0.24561729]
[1741440161099,0.03014,86239.0,86238.0,0.24561729]
[1741440161294,0.03014,86239.0,86238.0,0.31702372]
[1741440161694,0.03014,86239.0,86238.0,0.26884891]
[1741440161994,0.1461176,86239.0,86238.0,0.15286991]
[1741440162189,0.1461176,86239.0,86238.0,0.15313021]
[1741440162590,0.1461176,86239.0,86238.0,0.12345201]
[1741440162802,0.1481176,86239.0,86238.0,0.12345201]
[1741440163298,0.2144176,86239.0,86238.0,0.14146535]
[1741440163792,0.2144176,86239.0,86238.0,0.15546501]
[1741440163998,0.2144176,86239.0,86238.0,0.10998693]
[1741440164194,0.2144176,86239.0,86238.0,0.12334208]
[1741440164894,0.2144176,86239.0,86238.0,0.09115561]
[1741440165592,0.39529088,86239.0,86238.0,0.07780046]
[1741440165995,0.39529088,86239.0,86238.0,0.09585476]
[1741440166195,0.24529088,86239.0,86238.0,0.09203763]
[1741440166694,0.24730967,86239.0,86238.0,0.09203763]
[1741440166900,0.24730967,86239.0,86238.0,0.07398333]
[1741440167503,0.97830967,86239.0,86238.0,0.07398333]
[1741440168000,1.19600967,86239.0,86238.0,0.07398333]
[1741440168696,1.19600967,86239.0,86238.0,0.03921996]
[1741440170004,1.55680967,86239.0,86238.0,0.03921996]
[1741440171292,1.3111082,86239.0,86238.0,0.03921996]
[1741440171497,1.42910452,86239.0,86238.0,0.03921996]
[1741440173892,1.21140452,86239.0,86238.0,0.03921996]
[1741440174096,1.21140452,86239.0,86238.0,0.01462041]
[1741440174301,0.1159857,86233.0,86232.0,0.0633]
[1741440175306,0.1795857,86233.0,86232.0,0.0633]
[1741440176203,0.2597057,86233.0,86232.0,0.0633]
[1741440176511,0.27710571,86233.0,86232.0,0.0633]
[1741440177607,0.2791245,86233.0,86232.0,0.0633]
[1741440178906,0.2460245,86233.0,86232.0,0.07774084]
[1741440179109,0.2155245,86233.0,86232.0,0.07774084]
[1741440179606,0.2155245,86233.0,86232.0,0.0633]
[1741440180109,0.2155245,86233.0,86232.0,0.1792871]
[1741440180300,0.21350571,86233.0,86232.0,0.1792871]
[1741440180502,0.2155245,86233.0,86232.0,0.1792871]
[1741440180701,0.0194188,86233.0,86232.0,0.1792871]
[1741440180904,0.0993388,86233.0,86232.0,0.1792871]
[1741440181103,0.0194188,86233.0,86232.0,0.1792871]
[1741440181310,0.0993388,86233.0,86232.0,0.1792871]
[1741440181810,0.0993388,86233.0,86232.0,0.19377958]
[1741440182510,0.5761245,86233.0,86232.0,0.07779248]
[1741440182702,0.6385245,86233.0,86232.0,0.07779248]
[1741440182903,0.6385245,86233.0,86232.0,0.19377958]
[1741440183408,0.60480571,86233.0,86232.0,0.1792871]
[1741440183617,0.6068245,86233.0,86232.0,0.1792871]
[1741440183803,0.6068245,86233.0,86232.0,0.0633]
[1741440185109,0.6068245,86233.0,86232.0,0.07779005]
[1741440186310,0.60780571,86233.0,86232.0,0.07779005]
[1741440186516,0.6098245,86233.0,86232.0,0.07779005]
[1741440187707,0.6068245,86233.0,86232.0,0.07779005]
[1741440187907,0.6098245,86233.0,86232.0,0.07779005]
[1741440188314,0.59042192,86233.0,86232.0,0.07779005]
[1741440189413,0.58840313,86233.0,86232.0,0.07779005]
[1741440189612,0.59042192,86233.0,86232.0,0.07779005]
[1741440189810,0.4631388,86233.0,86232.0,0.07779005]
[1741440190014,0.4631388,86233.0,86232.0,0.19377715]
[1741440190315,0.46112001,86233.0,86232.0,0.19377715]
[1741440190516,0.45812001,86233.0,86232.0,0.19377715]
[1741440190720,0.46112001,86233.0,86232.0,0.20531319]
[1741440191710,0.46112001,86233.0,86232.0,0.22946093]
[1741440191911,0.43500926,86233.0,86232.0,0.24259621]
[1741440192421,0.07420926,86233.0,86232.0,0.24259621]
[1741440192718,0.07420926,86233.0,86232.0,0.21844847]
[1741440192918,0.07420926,86233.0,86232.0,0.20531319]
[1741440194119,0.07420926,86233.0,86232.0,0.23148479]
[1741440194420,0.003,86233.0,86232.0,0.23148479]
[1741440194820,0.003,86233.0,86232.0,0.70197406]
[1741440195410,4e-05,86234.0,86233.0,0.1159857]
[1741440195718,4e-05,86237.0,86236.0,0.1159817]
[1741440196026,4e-05,86237.0,86236.0,0.14212712]
[1741440196421,0.1160203,86237.0,86236.0,0.18107352]
[1741440196730,4e-05,86237.0,86236.0,0.18107352]
[1741440197113,0.731,86239.0,86238.0,0.115979]
[1741440197315,0.731,86239.0,86238.0,0.14212442]
[1741440197826,0.731,86239.0,86238.0,0.20562442]
[1741440198215,0.731,86239.0,86238.0,0.22011447]
[1741440198810,0.731,86239.0,86238.0,0.25041447]
[1741440199218,0.731,86239.0,86238.0,0.25141447]
[1741440201025,0.731,86239.0,86238.0,0.27542322]
[1741440201325,0.731,86239.0,86238.0,0.29698992]
[1741440201914,0.731,86239.0,86238.0,0.29598992]
[1741440202521,8e-05,86241.0,86240.0,0.1159763]
[1741440202729,8e-05,86241.0,86240.0,0.16377882]
[1741440203117,8e-05,86241.0,86240.0,0.20227762]
[1741440204136,4e-05,86244.0,86243.0,0.1159723]
[1741440204434,4e-05,86244.0,86243.0,0.16458608]
[1741440204825,4e-05,86244.0,86243.0,0.20308488]
[1741440205026,0.37820001,86255.0,86243.0,0.20308488]
[1741440205333,0.01740001,86252.0,86250.0,0.0579809]
[1741440205528,0.01740001,86252.0,86251.0,0.61954586]
[1741440206032,0.01740001,86252.0,86251.0,0.2701903]
[1741440206220,0.13336021,86252.0,86251.0,0.2701903]
[1741440206533,0.13336021,86252.0,86251.0,0.26460456]
[1741440207228,0.13336021,86252.0,86251.0,0.14864306]
[1741440207426,0.13436021,86252.0,86251.0,0.14864306]
[1741440208134,0.13436021,86252.0,86251.0,0.08684306]
[1741440208541,0.14571433,86252.0,86251.0,0.08600409]
[1741440209140,0.14571433,86252.0,86251.0,0.06489775]
[1741440210028,0.13436021,86252.0,86251.0,0.06489775]
[1741440210338,0.01840001,86252.0,86251.0,0.18085925]
[1741440210539,0.13436021,86252.0,86251.0,0.18063322]
[1741440210740,0.13436021,86252.0,86251.0,0.24183322]
[1741440210940,0.13436021,86252.0,86251.0,0.21782447]
[1741440212642,0.13436021,86252.0,86251.0,0.21785051]
[1741440212837,0.01840001,86252.0,86251.0,0.21785051]
[1741440213246,0.09860001,86252.0,86251.0,0.23901835]
[1741440214141,0.21456021,86252.0,86251.0,0.23901835]
[1741440214343,0.09860001,86252.0,86251.0,0.23901835]
[1741440214843,0.27686021,86252.0,86251.0,0.23901835]
[1741440215141,0.27686021,86252.0,86251.0,0.21785051]
[1741440217935,0.27686021,86252.0,86251.0,0.10188901]
[1741440219440,0.27686021,86252.0,86251.0,0.04068901]
[1741440220237,0.27686021,86252.0,86251.0,0.02772386]
[1741440220636,0.27887861,86252.0,86251.0,0.02772386]
[1741440221246,0.27887861,86252.0,86251.0,0.04073073]
[1741440222346,0.27686021,86252.0,86251.0,0.04073073]
[1741440223650,0.27887861,86252.0,86251.0,0.04073073]
[1741440225243,0.27887861,86252.0,86251.0,0.07313073]
[1741440225640,0.05201841,86252.0,86251.0,0.18909223]
[1741440225845,0.10049841,86252.0,86251.0,0.10523073]
[1741440226147,0.21645861,86252.0,86251.0,0.10523073]
[1741440226742,0.28135861,86252.0,86251.0,0.10523073]
[1741440227054,0.28035861,86252.0,86251.0,0.10521578]
[1741440227245,0.28135861,86252.0,86251.0,0.10521578]
[1741440228343,0.27934021,86252.0,86251.0,0.10521578]
[1741440228840,0.27934021,86252.0,86251.0,0.10515409]
[1741440229644,0.27934021,86252.0,86251.0,0.38264339]
[1741440230345,0.27834021,86252.0,86251.0,0.38264339]
[1741440230551,0.27934021,86252.0,86251.0,0.38264339]
[1741440230741,0.24604021,86252.0,86251.0,0.38264339]
[1741440231145,0.21444021,86252.0,86251.0,0.38264339]
[1741440231449,0.21444021,86252.0,86251.0,0.36969164]
[1741440231649,0.21444021,86252.0,86251.0,0.38265697]
[1741440232650,0.24524021,86252.0,86251.0,0.38265697]
[1741440234250,0.24524021,86252.0,86251.0,0.36969164]
[1741440234453,0.24424021,86252.0,86251.0,0.36969164]
[1741440234654,0.24524021,86252.0,86251.0,0.36969164]
[1741440234844,0.24524021,86252.0,86251.0,0.35520159]
[1741440235448,0.24524021,86252.0,86251.0,0.36797515]
[1741440236245,0.24524021,86252.0,86251.0,0.35520159]
[1741440236654,0.24524021,86252.0,86251.0,0.28627442]
[1741440236852,0.24524021,86252.0,86251.0,0.22177442]
[1741440236853,0.38252723,86252.0,86251.0,0.22177442]
[1741440237051,0.43252723,86252.0,86251.0,0.22177442]
[1741440237355,0.43252723,86252.0,86251.0,0.22304181]
[1741440237546,0.43454576,86252.0,86251.0,0.22304181]
[1741440238255,0.43454576,86252.0,86251.0,0.20856213]
[1741440240251,0.31858556,86252.0,86248.0,0.0308]
[1741440240452,0.4767642,86249.0,86248.0,0.0308]
[1741440240954,0.48077955,86249.0,86248.0,0.0308]
[1741440242857,0.48177955,86249.0,86248.0,0.0308]
[1741440243958,0.48077955,86249.0,86248.0,0.0308]
[1741440244154,0.48177955,86249.0,86248.0,0.0308]
[1741440244552,0.56371802,86249.0,86248.0,0.0308]
[1741440245153,0.59511802,86249.0,86248.0,0.0308]
[1741440245556,0.59511802,86249.0,86248.0,0.04392518]
[1741440246158,0.59511802,86249.0,86248.0,0.04394223]
[1741440246457,0.59309955,86249.0,86248.0,0.0308]
[1741440246659,0.59511803,86249.0,86248.0,0.0308]
[1741440249256,0.59309955,86249.0,86248.0,0.0308]
[1741440249657,0.59511811,86249.0,86248.0,0.0308]
[1741440251164,0.56371811,86249.0,86248.0,0.0308]
[1741440251365,0.62621811,86249.0,86248.0,0.0308]
[1741440252367,0.62419955,86249.0,86248.0,0.0308]
[1741440253267,0.59349955,86249.0,86248.0,0.0308]
[1741440253765,0.59551802,86249.0,86248.0,0.04393207]
[1741440255160,0.62781802,86249.0,86248.0,0.04393207]
[1741440255364,0.59551802,86249.0,86248.0,0.04393207]
[1741440256471,0.64521803,86249.0,86248.0,0.04393207]
[1741440256669,0.46113848,86249.0,86248.0,0.15989757]
[1741440256970,0.01740001,86254.0,86253.0,0.1159588]
[1741440257175,0.09732001,86254.0,86253.0,0.12909087]
[1741440257563,0.09732001,86254.0,86253.0,0.1159588]
[1741440258161,0.09832001,86254.0,86251.0,0.0579801]
[1741440258357,0.09832001,86254.0,86253.0,0.1159588]
[1741440258976,0.09832001,86254.0,86253.0,0.3934481]
[1741440260667,0.09832001,86254.0,86253.0,0.4591481]
[1741440261477,0.09732001,86254.0,86253.0,0.4591481]
[1741440262174,0.01740001,86254.0,86253.0,0.4591481]
[1741440262372,0.09732001,86254.0,86253.0,0.4591481]
[1741440262577,0.09732001,86254.0,86253.0,0.47226093]
[1741440263077,0.07992,86254.0,86253.0,0.47226093]
[1741440263569,0.00012,86257.0,86256.0,0.1159548]
[1741440263762,0.08004,86257.0,86256.0,0.48986763]
[1741440264477,0.08004,86257.0,86256.0,0.48985488]
[1741440265177,0.00012,86257.0,86256.0,0.48985488]
[1741440265374,0.73088,86260.0,86256.0,0.48985488]
[1741440265375,0.73088,86260.0,86259.0,0.1159508]
[1741440265570,0.81084,86260.0,86259.0,0.12905088]
[1741440266479,0.81084,86260.0,86259.0,0.12907445]
[1741440267065,0.73092,86260.0,86259.0,0.12907445]
[1741440269079,0.73092,86260.0,86259.0,0.33693037]
[1741440269776,0.73092,86260.0,86259.0,0.32380672]
[1741440270671,0.73092,86260.0,86259.0,0.33689534]
[1741440271777,0.73092,86260.0,86259.0,0.12903942]
[1741440272171,0.73092,86260.0,86259.0,0.19163942]
[1741440272682,0.73092,86260.0,86259.0,0.20435928]
[1741440273678,0.73092,86260.0,86259.0,0.19163482]
[1741440274474,0.73092,86260.0,86259.0,0.1785508]
[1741440274672,0.73092,86260.0,86259.0,0.19164197]
[1741440276679,0.73092,86260.0,86259.0,0.1785508]
[1741440277682,0.73092,86260.0,86259.0,0.19166018]
[1741440278477,4e-05,86260.0,86259.0,0.19166018]
[1741440279971,8e-05,86262.0,86261.0,0.1159481]
[1741440280176,8e-05,86262.0,86261.0,0.12905748]
[1741440280380,0.11098,86270.0,86268.0,0.1159387]
[1741440280679,0.11098,86270.0,86268.0,0.48984808]
[1741440281185,0.06324,86269.0,86268.0,0.48984808]
[1741440281390,0.06324,86269.0,86268.0,0.55164808]
[1741440282288,4e-05,86269.0,86268.0,0.55164808]
[1741440282583,4e-05,86269.0,86268.0,0.56441113]
[1741440283185,4e-05,86269.0,86268.0,0.56641113]
[1741440283384,0.03034,86269.0,86268.0,0.56641113]
[1741440283585,0.03034,86269.0,86268.0,0.55364808]
[1741440284488,0.03034,86269.0,86268.0,0.5405387]
[1741440284791,0.0303,86269.0,86268.0,0.553673]
[1741440284972,0.0608,86269.0,86268.0,0.553673]
[1741440286692,0.0608,86269.0,86268.0,0.551673]
[1741440286890,0.0608,86269.0,86268.0,0.553673]
[1741440287196,0.0608,86269.0,86268.0,0.522873]
[1741440287494,0.1767373,86269.0,86268.0,0.131073]
[1741440287684,0.1767373,86269.0,86268.0,0.14385726]
[1741440288188,0.0608,86269.0,86268.0,0.14385726]
[1741440288592,0.0608,86269.0,86268.0,0.1438874]
[1741440289187,0.0608,86269.0,86268.0,0.97989836]
[1741440290486,0.0608,86269.0,86268.0,0.97994607]
[1741440290691,0.0608,86269.0,86268.0,0.97794607]
[1741440292291,0.0608,86269.0,86268.0,0.15643526]
[1741440294703,0.0311,86270.0,86268.0,0.25085216]
[1741440294991,0.01740001,86282.0,86268.0,0.25085216]
[1741440294992,0.01740001,86282.0,86269.0,0.28870189]
[1741440295196,0.04850001,86281.0,86280.0,0.1159225]
[1741440295385,0.04850001,86281.0,86280.0,0.16338385]
[1741440295386,0.0311,86281.0,86280.0,0.16338385]
[1741440295586,0.3608,86299.0,86285.0,0.1159158]
[1741440295587,0.37820001,86286.0,86285.0,0.1159158]
[1741440295788,0.08016,86292.0,86287.0,0.1159131]
[1741440295988,0.08016,86292.0,86287.0,0.2053523]
[1741440296184,0.08016,86292.0,86287.0,0.20241412]
[1741440296388,0.74812001,86288.0,86287.0,0.26969847]
[1741440297100,0.73072,86288.0,86287.0,0.26969847]
[1741440297898,0.73072,86288.0,86287.0,0.28140062]
[1741440298097,0.73072,86288.0,86287.0,0.3219183]
[1741440298295,0.73072,86288.0,86287.0,0.28140062]
[1741440298598,0.73072,86288.0,86287.0,0.78312893]
[1741440300085,0.73072,86288.0,86287.0,0.75858941]
[1741440300988,0.8466318,86288.0,86287.0,0.69368941]
[1741440301393,0.8466318,86288.0,86287.0,0.72398941]
[1741440301599,0.8466318,86288.0,86287.0,0.74799104]
[1741440301898,0.79402,86288.0,86287.0,0.74795087]
[1741440302400,0.9099318,86288.0,86287.0,0.70594872]
[1741440302590,0.9099318,86288.0,86287.0,0.68194709]
[1741440302795,0.9099318,86288.0,86287.0,0.65957048]
[1741440303193,0.9099318,86288.0,86287.0,0.54365738]
[1741440303801,0.92125131,86288.0,86287.0,0.5296723]
[1741440304705,0.92125131,86288.0,86287.0,0.51517215]
[1741440305402,0.92125131,86288.0,86287.0,0.63108525]
[1741440305597,0.80533951,86288.0,86284.0,0.39337661]
[1741440305799,0.1159145,86286.0,86285.0,0.0131617]
[1741440306193,0.1159145,86286.0,86285.0,0.02764533]
[1741440306397,0.1780145,86286.0,86285.0,0.02764533]
[1741440306901,0.1780145,86286.0,86285.0,0.04039991]
[1741440307098,0.0621,86286.0,86285.0,0.15631571]
[1741440307295,0.0621,86286.0,86285.0,0.18721571]
[1741440307497,0.0621,86286.0,86285.0,0.22031571]
[1741440308290,0.08076,86287.0,86285.0,0.22031571]
[1741440308602,0.08076,86287.0,86286.0,0.14183078]
[1741440308808,0.08076,86287.0,86286.0,0.1290762]
[1741440308997,0.08076,86287.0,86286.0,0.20465983]
[1741440309306,0.11236,86287.0,86286.0,0.20465983]
[1741440309498,0.14316,86287.0,86286.0,0.20465983]
[1741440309718,0.14316,86287.0,86286.0,0.20468249]
[1741440309899,0.11822165,86294.0,86286.0,0.20468249]
[1741440309900,0.00231765,86294.0,86293.0,0.1159051]
[1741440310196,0.1,86300.0,86299.0,0.115897]
[1741440310403,0.08150001,86316.0,86315.0,0.1158755]
[1741440310600,0.08150001,86316.0,86315.0,0.1418056]
[1741440310800,0.08150001,86316.0,86315.0,0.16326502]
[1741440311000,0.08150001,86316.0,86315.0,0.17774865]
[1741440311201,0.08150001,86316.0,86315.0,0.18940736]
[1741440311690,0.04820001,86316.0,86315.0,0.19005305]
[1741440311891,1.2072329,86317.0,86315.0,0.19005305]
[1741440311892,0.73056,86317.0,86316.0,0.1158742]
[1741440312098,0.73056,86317.0,86316.0,0.52470941]
[1741440312602,0.73056,86317.0,86316.0,0.56324717]
[1741440313491,0.73056,86317.0,86316.0,0.56424717]
[1741440313695,0.73056,86317.0,86316.0,0.56420361]
[1741440313905,0.8464328,86317.0,86316.0,0.56420361]
[1741440314206,0.73056,86317.0,86316.0,0.56420361]
[1741440314410,0.73056,86317.0,86316.0,0.54014948]
[1741440314904,0.01740001,86325.0,86324.0,0.1158634]
[1741440315208,0.01740001,86336.0,86335.0,0.1158487]
[1741440315408,0.13324731,86336.0,86335.0,0.16384035]
[1741440315900,0.13324731,86336.0,86335.0,0.20288696]
[1741440316406,0.16634731,86336.0,86335.0,0.20288696]
[1741440316605,0.19804731,86336.0,86335.0,0.20288696]
[1741440316799,0.19804731,86336.0,86335.0,0.15697411]
[1741440316997,0.01740001,86336.0,86335.0,0.15697411]
[1741440317605,0.01740001,86336.0,86335.0,0.15666313]
[1741440317805,0.01740001,86336.0,86335.0,0.15766313]
[1741440318200,0.07940001,86336.0,86335.0,0.04181443]
[1741440318397,0.58664731,86336.0,86335.0,0.14442203]
[1741440318799,0.58664731,86336.0,86335.0,0.02857333]
[1741440319005,0.58664731,86336.0,86335.0,0.14442203]
[1741440319307,0.47080001,86336.0,86335.0,0.14442203]
[1741440319712,0.01740001,86337.0,86336.0,0.1158461]
[1741440320010,0.01740001,86337.0,86336.0,0.14991255]
[1741440320496,0.01740001,86337.0,86336.0,0.20172633]
[1741440321002,0.10008001,86337.0,86336.0,0.20172633]
[1741440321203,0.21592601,86337.0,86336.0,0.08588023]
[1741440321401,0.57672601,86337.0,86336.0,0.03853802]
[1741440321708,0.21592601,86337.0,86336.0,0.08605443]
[1741440321908,0.21592601,86337.0,86336.0,0.20190173]
[1741440322101,0.10008001,86337.0,86336.0,0.20190173]
[1741440322407,0.01740001,86337.0,86336.0,0.20190173]
[1741440322909,0.01740001,86337.0,86336.0,0.23037476]
[1741440323307,0.08316,86341.0,86340.0,0.115842]
[1741440323496,0.1990006,86341.0,86340.0,0.19183144]
[1741440323899,0.2311006,86341.0,86340.0,0.14668857]
[1741440324411,0.2627006,86341.0,86340.0,0.14689842]
[1741440325001,0.2627006,86341.0,86340.0,0.18860764]
[1741440325203,0.2627006,86341.0,86340.0,0.18930689]
[1741440325403,0.2627006,86341.0,86340.0,0.20266033]
[1741440325602,0.2627006,86341.0,86340.0,0.15438002]
[1741440325806,0.2627006,86341.0,86340.0,0.20266765]
[1741440326002,0.2627006,86341.0,86340.0,0.07347113]
[1741440326405,0.2627006,86341.0,86340.0,0.08682389]
[1741440327013,0.2627006,86341.0,86340.0,0.11802389]
[1741440327512,0.2627006,86341.0,86340.0,0.1180175]
[1741440327710,0.2311006,86341.0,86340.0,0.2338595]
[1741440327916,0.1990006,86341.0,86340.0,0.23387695]
[1741440328413,0.1990006,86341.0,86340.0,0.11803495]
[1741440328608,0.2296006,86341.0,86340.0,0.11803495]
[1741440328914,0.2601006,86341.0,86340.0,0.11803495]
[1741440329108,0.2601006,86341.0,86340.0,0.23387695]
[1741440329414,0.01740001,86342.0,86340.0,0.23387695]
[1741440329415,0.01740001,86342.0,86341.0,0.1158406]
[1741440329617,0.01740001,86342.0,86341.0,0.19656429]
[1741440329803,0.01740001,86342.0,86341.0,0.26830231]
[1741440330304,0.01740001,86346.0,86345.0,0.1158353]
[1741440330506,0.01740001,86346.0,86345.0,0.16365899]
[1741440330806,0.01740001,86346.0,86345.0,0.20219701]
[1741440331008,0.01740001,86346.0,86345.0,0.18099076]
[1741440331311,0.01740001,86346.0,86345.0,0.15693637]
[1741440331817,0.08412,86351.0,86345.0,0.15693637]
[1741440332014,0.08412,86351.0,86346.0,0.14245134]
[1741440332403,0.74780001,86347.0,86346.0,0.15693497]
[1741440332916,0.74780001,86347.0,86346.0,0.14368135]
[1741440333217,0.7304,86347.0,86346.0,0.14368135]
[1741440334917,0.7304,86347.0,86346.0,0.15644923]
[1741440335617,0.7304,86347.0,86346.0,0.15639316]
[1741440336515,0.74780001,86347.0,86346.0,0.15639316]
[1741440336908,0.74780001,86347.0,86346.0,0.17759636]
[1741440337411,0.74780001,86347.0,86346.0,0.20173005]
[1741440338217,0.86363261,86347.0,86346.0,0.08589615]
[1741440338615,0.86363261,86347.0,86346.0,0.20173005]
[1741440339109,0.92993261,86347.0,86346.0,0.20173005]
[1741440339311,0.92993261,86347.0,86346.0,0.17772587]
[1741440339706,0.81410001,86347.0,86346.0,0.17772587]
[1741440340202,0.92993261,86347.0,86346.0,0.67538593]
[1741440340407,0.81410001,86347.0,86346.0,0.69936444]
[1741440341014,0.81410001,86347.0,86346.0,0.67816124]
[1741440341519,0.81410001,86347.0,86346.0,0.67819662]
[1741440343018,0.78100001,86347.0,86346.0,0.67819662]
[1741440343408,0.78100001,86347.0,86346.0,0.67821108]
[1741440343611,0.78100001,86347.0,86346.0,0.68957249]
[1741440343612,0.74794109,86347.0,86346.0,0.68957249]
[1741440343817,0.72186496,86347.0,86346.0,0.68957249]
[1741440344013,0.69578913,86347.0,86346.0,0.73349172]
[1741440344418,0.69578913,86347.0,86346.0,0.76449172]
[1741440344611,0.69578913,86347.0,86346.0,0.72961929]
[1741440344817,0.69578913,86347.0,86346.0,0.76552889]
[1741440345422,0.69578913,86347.0,86346.0,0.76551303]
[1741440345621,0.65957313,86347.0,86346.0,0.76551303]
[1741440345918,0.62335749,86347.0,86346.0,0.76551303]
[1741440346121,0.3608,86361.0,86346.0,0.66842253]
[1741440346428,0.08532,86364.0,86363.0,0.1158111]
[1741440346728,0.08532,86364.0,86363.0,0.1651836]
[1741440346930,0.08532,86364.0,86363.0,0.20364574]
[1741440347120,0.08532,86364.0,86363.0,0.08783464]
[1741440347316,0.5619298,86364.0,86363.0,0.08783464]
[1741440347925,0.6254298,86364.0,86363.0,0.08783464]
[1741440348128,0.6254298,86364.0,86363.0,0.06385613]
[1741440348816,0.47992102,86364.0,86363.0,1.2845204]
[1741440349019,0.56604102,86364.0,86363.0,1.1687093]
[1741440349225,0.56604102,86364.0,86363.0,1.16771495]
[1741440349622,0.56604102,86364.0,86363.0,1.23231495]
[1741440349824,0.56604102,86364.0,86363.0,1.25652975]
[1741440350021,0.56604102,86364.0,86363.0,1.22382975]
[1741440350222,0.56604102,86364.0,86363.0,1.19192975]
[1741440350534,0.56604102,86364.0,86363.0,0.58473664]
[1741440350826,0.3226857,86364.0,86363.0,0.58473664]
[1741440351021,0.3226857,86364.0,86363.0,0.59515991]
[1741440351833,0.3226857,86364.0,86363.0,0.57094511]
[1741440352422,0.3226857,86364.0,86363.0,0.07328505]
[1741440352926,0.3226857,86364.0,86363.0,0.10648505]
[1741440352927,0.2654298,86364.0,86363.0,0.10648505]
[1741440353127,0.2654298,86364.0,86363.0,0.09306239]
[1741440353325,0.2654298,86364.0,86363.0,0.1059909]
[1741440353522,0.2654298,86364.0,86363.0,0.0727909]
[1741440353731,0.6262298,86364.0,86363.0,0.0408909]
[1741440353935,0.76230082,86364.0,86363.0,0.0408909]
[1741440354633,0.76431665,86364.0,86363.0,0.0408909]
[1741440355238,0.76431665,86364.0,86363.0,0.04096847]
[1741440356138,0.78171666,86364.0,86363.0,0.04096847]
[1741440359230,0.78171666,86364.0,86363.0,4e-08]
[1741440359231,1.87941666,86364.0,86363.0,4e-08]
[1741440359434,0.1158178,86358.0,86357.0,0.20810226]
[1741440359639,0.3335178,86358.0,86357.0,0.20810226]
[1741440359842,0.38679879,86358.0,86357.0,0.20810226]
[1741440360144,0.38679879,86358.0,86357.0,0.22108157]
[1741440360438,0.48289879,86358.0,86357.0,0.22108157]
[1741440360643,0.48491483,86358.0,86357.0,0.22108157]
[1741440361544,0.63491483,86358.0,86357.0,0.22108157]
[1741440361838,0.63491483,86358.0,86357.0,0.01297931]
[1741440362042,0.48491483,86358.0,86355.0,0.00017374]
[1741440362244,0.4766205,86356.0,86355.0,0.00017374]
[1741440362650,0.61136863,86356.0,86355.0,0.00017374]
[1741440363146,0.61136863,86356.0,86345.0,0.20036969]
[1741440363147,0.1158339,86346.0,86345.0,0.20036969]
[1741440363345,0.7802539,86346.0,86345.0,0.20036969]
[1741440363544,0.93627839,86346.0,86345.0,0.20036969]
[1741440363941,0.96927839,86346.0,86345.0,0.20036969]
[1741440364145,1.00217839,86346.0,86345.0,0.20036969]
[1741440365455,0.85217839,86346.0,86345.0,0.20036969]
[1741440365752,0.1158447,86338.0,86337.0,0.00017374]
[1741440365954,0.4756447,86338.0,86337.0,0.06397374]
[1741440366251,0.5620047,86338.0,86337.0,0.06397374]
[1741440366448,0.5610047,86338.0,86337.0,0.06397374]
[1741440367045,0.57280671,86338.0,86337.0,0.06397374]
[1741440367447,0.60330671,86338.0,86337.0,0.06397374]
[1741440367654,0.00201635,86343.0,86337.0,0.06397374]
[1741440367855,0.08624,86342.0,86337.0,0.06497374]
[1741440368150,0.1158447,86338.0,86337.0,0.18081934]
[1741440368349,0.1158447,86338.0,86337.0,0.06497374]
[1741440369358,0.08624,86342.0,86337.0,0.06497374]
[1741440369561,0.1208447,86338.0,86337.0,0.17981914]
[1741440369857,0.005,86338.0,86337.0,0.17981914]
[1741440370060,0.09112,86338.0,86337.0,0.17981914]
[1741440370256,0.2039647,86338.0,86337.0,0.06397374]
[1741440371352,0.2661647,86338.0,86337.0,0.06397374]
[1741440371758,0.40468384,86338.0,86337.0,0.00017374]
[1741440372856,0.3608,86353.0,86337.0,0.00017374]
[1741440373047,0.36954154,86365.0,86344.0,0.3608]
[1741440373048,0.0317,86362.0,86344.0,0.3608]
[1741440373254,0.13969099,86360.0,86351.0,0.01401146]
[1741440373457,0.13969099,86360.0,86353.0,0.1158245]
[1741440373661,0.13969099,86360.0,86353.0,0.16430768]
[1741440373855,0.09541268,86354.0,86353.0,0.22670768]
[1741440374159,0.01301269,86355.0,86354.0,0.1158232]
[1741440374361,0.0952,86363.0,86362.0,0.1158125]
[1741440374549,0.0952,86363.0,86362.0,0.0485271]
[1741440374861,0.0952,86363.0,86362.0,0.08870329]
[1741440375054,0.74740001,86364.0,86362.0,0.08870329]
[1741440375365,0.74740001,86364.0,86363.0,0.0485271]
[1741440375863,0.74740001,86364.0,86363.0,0.12086504]
[1741440376060,0.73,86364.0,86363.0,0.12086504]
[1741440376450,0.74740001,86364.0,86363.0,0.12086504]
[1741440376863,0.74740001,86364.0,86363.0,0.08870329]
[1741440377254,0.74940001,86364.0,86363.0,0.08870329]
[1741440377864,0.86520981,86364.0,86363.0,0.07557002]
[1741440378166,1.0670321,86364.0,86363.0,0.05378902]
[1741440378362,1.0979321,86364.0,86363.0,0.04017619]
[1741440378569,1.09994794,86364.0,86363.0,0.05332741]
[1741440378957,1.09994794,86364.0,86363.0,0.02784907]
[1741440379157,1.0979321,86364.0,86363.0,0.02784907]
[1741440379760,1.09994794,86364.0,86363.0,0.02784907]
[1741440380058,1.09994794,86364.0,86363.0,0.05315177]
[1741440380370,1.09994794,86364.0,86363.0,0.07559087]
[1741440382969,1.06904794,86364.0,86363.0,0.07559087]
[1741440383177,1.16496794,86364.0,86363.0,0.07559087]